[Event "Fall IM-D Norm Invitational 2022"]
[Site "Charlotte"]
[Date "2022.11.20"]
[Round "5"]
[White "Lee, Alice"]
[Black "Eidelman, Gabriel"]
[Result "1/2-1/2"]
[ECO "D35"]
[WhiteElo "2284"]
[BlackElo "2197"]
[Annotator "TA"]
[PlyCount "70"]
[EventDate "2022.11.18"]
[EventType "tourn"]
[EventCountry "USA"]
[SourceTitle "playchess.com"]
[Source "ChessBase"]
[SourceQuality "1"]
[TimeControl "5400+30"]

{[%evp 22,70,29,0,0,-6,0,0,0,-26,-27,-29,-10,0,-10,-7,-22,-55,-3,-21,0,0,8,12,4,0,0,0,0,0,0,0,0,-48,-56,-48,-51,-50,-18,-18,-18,-18,-18,-111,-97,-97,0,0,0,0,0]} 1. d4 {[%emt 0:00:02]} d5 {[%emt 0:00:49]} 2. c4 {[%emt 0:00:07]} e6 {[%emt 0:00:05]} 3. Nc3 {[%emt 0:00:06]} Nf6 {[%emt 0:00:06]} 4. cxd5 {[%emt 0:00:06]} exd5 {[%emt 0:00:06]} 5. Bg5 {[%emt 0:00:06]} Be7 {[%emt 0:00:42]} 6. e3 {[%emt 0:00:07]} O-O {[%emt 0:00:10]} 7. Bd3 {[%emt 0:00:07]} c6 {[%emt 0:01:41]} 8. Qc2 {[%emt 0:01:04]} Nbd7 {[%emt 0:00:16]} 9. Nge2 {[%emt 0:00:22][%cal Bg1e2,Be2g3,Bg3h5][%mdl 32]} Re8 {[%emt 0:00:16]} 10. O-O {[%emt 0:00:45]} Nf8 {[%emt 0:00:11]} 11. f3 {[%emt 0:03:11]} Ng6 {[%emt 0:00:18] 11...g6 is the modern continuation.} 12. Rae1 {[%emt 0:03:10]} h6 {[%emt 0:01:02] D36: Queen's Gambit Declined: Exchange Variation: Main line (5 Bg5 c6 6 Qc2).} 13. Bxf6 {[%emt 0:06:46]} Bxf6 {[%emt 0:00:10]} 14. Ng3 {[%emt 0:04:11]} Nf8 {[%emt 0:00:10] [#]} 15. Nh5 $146 {[%emt 0:02:28]} ({Predecessor:} 15. Kh1 Bh4 16. Qf2 Qc7 17. e4 Be6 18. e5 f5 19. f4 Qf7 20. Qe3 Ng6 21. b4 {1-0 (64) Handke,F (2260)-Doleschal,J (2035) Regensburg 1998}) 15... Bh4 {[%emt 0:09:18]} 16. g3 {[%emt 0:03:38]} Bg5 {[%emt 0:01:29][%cal Bh4g5,Bg5e7,Be7f6][%mdl 32]} 17. f4 {[%emt 0:08:13]} Be7 {[%emt 0:04:01] aiming for ...g6.} 18. f5 {[%emt 0:00:41] Prevents g6.} Nh7 $1 {[%emt 0:01:55]} 19. Qg2 {[%emt 0:05:45]} Bd7 {[%emt 0:15:12]} (19... Nf6 $15 20. Nxf6+ Bxf6) 20. Bb1 {[%emt 0:08:10]} Bf6 {[%emt 0:04:44]} 21. h4 {[%emt 0:05:41]} Qe7 {[%emt 0:14:47]} 22. Qf2 {[%emt 0:06:34]} Qd6 {[%emt 0:03:27]} 23. e4 {[%emt 0:10:44]} dxe4 {[%emt 0:01:04]} 24. Nxe4 {[%emt 0:00:07]} Qd5 {[%emt 0:03:53]} 25. Nhxf6+ {[%emt 0:02:27]} Nxf6 {[%emt 0:00:26]} 26. Nxf6+ {[%emt 0:00:36]} gxf6 {[%emt 0:00:03]} 27. g4 {[%emt 0:02:27]} (27. Kh2 $11) 27... c5 $15 {[%emt 0:09:04]} 28. dxc5 {[%emt 0:01:20]} ({Avoid the trap} 28. Rxe8+ $2 Rxe8 29. Bc2 Bc6 $19) 28... Bc6 {[%emt 0:04:36][%csl Gc6][%cal Rd5h1]} 29. Kh2 {[%emt 0:00:21] Inhibits Qh1+.} Rxe1 {[%emt 0:08:53]} 30. Rxe1 {[%emt 0:00:01]} Re8 {[%emt 0:00:03]} 31. Rxe8+ {[%emt 0:04:37]} Bxe8 {[%emt 0:00:02]} 32. Bc2 {[%emt 0:02:41] [#]} (32. Qg2 $11 Qe5+ 33. Kh3) 32... Qe5+ $1 $17 {[%emt 0:04:40]} ({But not} 32... Bc6 $6 33. Bb3 (33. Kh3 Qxa2 34. Bd3 Qb3 $17) 33... Qd3 34. Bc2 $11) 33. Kg1 {[%emt 0:00:32] [#]} Qxb2 {[%emt 0:02:13]} (33... Bc6 $1 $17 34. Bb3 a5) 34. Be4 $11 {[%emt 0:00:37]} Qc1+ {[%emt 0:02:48]} 35. Kh2 {[%emt 0:01:36]} Bc6 {[%emt 0:00:13] Weighted Error Value: White=0.14 (very precise) /Black=0.11 (very precise)} 1/2-1/2

[Event "Fall IM-D Norm Invitational 2022"]
[Site "Charlotte"]
[Date "2022.11.20"]
[Round "5"]
[White "Malicka, Maria"]
[Black "Willy, Stephen"]
[Result "1-0"]
[ECO "B11"]
[WhiteElo "2275"]
[BlackElo "2159"]
[Annotator "TA"]
[PlyCount "41"]
[EventDate "2022.11.18"]
[EventType "tourn"]
[EventCountry "USA"]
[SourceTitle "playchess.com"]
[Source "ChessBase"]
[SourceQuality "1"]
[TimeControl "5400+30"]

{[%evp 10,41,15,10,27,36,22,14,18,0,93,95,98,107,110,104,117,111,232,227,310,299,383,376,1689,1688,1484,1668,1473,1164,1587,1476,1387,1036]} 1. e4 {[%emt 0:00:02]} c6 {[%emt 0:00:09]} 2. Nc3 {[%emt 0:00:21]} d5 {[%emt 0:00:05]} 3. Nf3 {[%emt 0:00:24]} Bg4 {[%emt 0:00:12]} 4. h3 {[%emt 0:00:05]} Bxf3 {[%emt 0:00:06]} 5. Qxf3 {[%emt 0:00:02]} e6 {[%emt 0:00:12]} 6. Be2 {[%emt 0:00:04]} Bc5 {[%emt 0:00:19] B11: Caro-Kann: Two Knights Variation.} 7. O-O {[%emt 0:00:30]} Nd7 {[%emt 0:00:12]} 8. Qg3 {[%emt 0:03:05]} Bd4 {[%emt 0:04:17] The position is equal.} 9. d3 {[%emt 0:11:30]} Ngf6 {[%emt 0:02:39] [#]} (9... Ne7 $11) 10. Qxg7 $146 {[%emt 0:08:21]} ({Predecessor:} 10. exd5 exd5 11. Bf4 O-O 12. Bc7 Qe8 13. Rfe1 Be5 14. Bxe5 Qxe5 15. Qxe5 Nxe5 16. d4 {½-½ (24) Garrido Fernandez,D (2216)-Blasco Coll,A (2240) Barcelona 2019}) 10... Rg8 {[%emt 0:01:03]} 11. Qh6 $36 {[%emt 0:00:05][%mdl 2048] White is in control. White is more active.} Qc7 {[%emt 0:10:45]} 12. Qh4 {[%emt 0:14:20] And now exd5 would win.} Bxc3 {[%emt 0:07:26]} 13. bxc3 {[%emt 0:00:08]} Qe5 {[%emt 0:04:25]} (13... dxe4 $16 {was worth a try.} 14. dxe4 Rg6) 14. Rb1 $18 {[%emt 0:07:11]} Qxc3 {[%emt 0:20:39]} 15. exd5 {[%emt 0:10:30]} (15. Rxb7 $6 Qxc2 16. Re1 Rg6 17. exd5 cxd5 $18) 15... Qe5 {[%emt 0:13:15]} (15... Qxc2 16. dxe6 (16. Rxb7 Qxe2 17. dxc6 Ne5 $11) 16... fxe6 17. Bh5+ Nxh5 18. Qxh5+ Rg6 19. Qxh7 Qxd3 20. Bg5 $18) 16. dxc6 {[%emt 0:05:58]} Qxe2 $2 {[%emt 0:02:47]} (16... bxc6 17. Bf3 Rg6) 17. cxd7+ {[%emt 0:00:22] White is clearly winning.} Nxd7 {[%emt 0:00:09]} 18. Ba3 {[%emt 0:00:35][%csl Ga3][%cal Rh4e7] [#]} ({But not} 18. Rxb7 $2 Qf3 19. g3 Qxb7 $19) 18... f6 {[%emt 0:00:53]} 19. Qb4 {[%emt 0:06:00][%csl Ga3][%cal Rb4e7]} Rg7 {[%emt 0:01:50] Inhibits Qe7+.} 20. Qxb7 {[%emt 0:00:12]} Rb8 {[%emt 0:00:49]} 21. Qc6 {[%emt 0:00:12] Black did not feel at home in the position after the opening.  Weighted Error Value: White=0.04 (flawless) /Black=0.52} 1-0

[Event "Fall IM-D Norm Invitational 2022"]
[Site "Charlotte"]
[Date "2022.11.20"]
[Round "5"]
[White "Estrada Nieto, Julian"]
[Black "Liu, Eric"]
[Result "1/2-1/2"]
[ECO "B51"]
[WhiteElo "2241"]
[BlackElo "2182"]
[Annotator "TA"]
[PlyCount "48"]
[EventDate "2022.11.18"]
[EventType "tourn"]
[EventCountry "USA"]
[SourceTitle "playchess.com"]
[Source "ChessBase"]
[SourceQuality "1"]
[TimeControl "5400+30"]

{[%evp 13,48,7,14,17,11,-40,4,0,7,2,16,0,15,14,29,29,29,22,28,29,32,34,15,0,0,0,0,0,0,0,0,0,0,0,0,0,0]} 1. e4 {[%emt 0:01:19]} c5 {[%emt 0:00:08]} 2. Nf3 {[%emt 0:00:08]} d6 {[%emt 0:00:07]} 3. Bb5+ {[%emt 0:00:28]} Nd7 {[%emt 0:00:13]} 4. d4 {[%emt 0:02:47]} cxd4 {[%emt 0:00:24]} 5. Qxd4 {[%emt 0:00:03]} a6 {[%emt 0:00:18]} 6. Bxd7+ {[%emt 0:00:15]} Bxd7 {[%emt 0:00:06]} 7. Nc3 {[%emt 0:00:13]} e5 {[%emt 0:00:46]} 8. Qd3 {[%emt 0:01:25] B51: Sicilian: Moscow Variation (3 Bb5+) without 3...Bd7.} Rc8 {[%emt 0:00:46]} 9. a4 {[%emt 0:02:37]} ({Better is} 9. Bg5 $11 Qc7 10. O-O-O) 9... h6 {[%emt 0:03:47]} 10. Nd2 {[%emt 0:01:23][%cal Bf3d2,Bd2f1,Bf1e3][%mdl 32]} Be6 {[%emt 0:03:41]} 11. O-O {[%emt 0:01:48]} Qc7 {[%emt 0:01:45]} 12. Rd1 {[%emt 0:06:06]} Nf6 {[%emt 0:02:00]} 13. Nf1 {[%emt 0:00:17]} Be7 {[%emt 0:06:47]} 14. Ne3 {[%emt 0:00:34]} O-O {[%emt 0:00:43]} 15. a5 {[%emt 0:04:33]} Rfd8 {[%emt 0:10:25]} 16. Bd2 {[%emt 0:04:00]} Bc4 {[%emt 0:12:13]} 17. Nxc4 {[%emt 0:00:21]} Qxc4 {[%emt 0:00:10]} 18. Be3 {[%emt 0:02:55] The position is equal.} Qxd3 {[%emt 0:08:16]} 19. Rxd3 {[%emt 0:00:17] [#]} d5 $146 {[%emt 0:04:07] [#] ...d4 is the strong threat.} ({Predecessor:} 19... Rc4 20. f3 Rdc8 21. Kf1 Kf8 22. Ke2 Ke8 23. Kd1 Kd7 24. Ra3 Bd8 25. Rb3 Bxa5 26. Rxb7+ {1-0 (67) Xiong,J (2709)-Aditya,M (2438) Chess.com INT 2020}) 20. exd5 {[%emt 0:02:47]} Bb4 {[%emt 0:04:23]} 21. Bb6 {[%emt 0:14:18]} Rd7 {[%emt 0:01:15]} 22. Na2 {[%emt 0:08:08]} Bf8 {[%emt 0:01:58]} 23. Nc3 {[%emt 0:01:00]} Bb4 {[%emt 0:00:43]} 24. Na2 {[%emt 0:00:21]} Bf8 {[%emt 0:00:44] Weighted Error Value: White=0.06 (flawless) /Black=0.04 (flawless)} 1/2-1/2

[Event "Fall IM-D Norm Invitational 2022"]
[Site "Charlotte"]
[Date "2022.11.21"]
[Round "7"]
[White "Petenyi, Tamas"]
[Black "Lee, Alice"]
[Result "1/2-1/2"]
[ECO "D04"]
[WhiteElo "2410"]
[BlackElo "2284"]
[Annotator "TA"]
[PlyCount "71"]
[EventDate "2022.11.18"]
[EventType "tourn"]
[EventCountry "USA"]
[SourceTitle "playchess.com"]
[Source "ChessBase"]
[SourceQuality "1"]
[TimeControl "5400+30"]

{[%evp 24,71,14,11,17,12,10,10,20,9,24,24,27,22,39,28,33,25,26,26,41,23,22,21,27,29,30,2,0,0,7,7,10,4,4,4,11,0,91,10,5,18,13,6,17,18,14,12,16,16]} 1. Nf3 {[%emt 0:01:15]} d5 {[%emt 0:00:05]} 2. e3 {[%emt 0:01:01]} Nf6 {[%emt 0:00:10]} 3. d4 {[%emt 0:02:15]} Bf5 {[%emt 0:01:46]} 4. Bd3 {[%emt 0:00:56]} Bxd3 {[%emt 0:00:55]} 5. Qxd3 {[%emt 0:00:30]} c6 {[%emt 0:01:27]} 6. O-O {[%emt 0:00:32]} e6 {[%emt 0:00:15]} 7. c4 {[%emt 0:04:22]} Be7 {[%emt 0:01:52]} 8. Nc3 {[%emt 0:01:15]} O-O {[%emt 0:01:59]} 9. b3 {[%emt 0:04:10]} Nbd7 {[%emt 0:01:17]} 10. Bb2 {[%emt 0:00:37]} Bd6 {[%emt 0:03:35]} 11. e4 {[%emt 0:05:45]} dxe4 {[%emt 0:11:07]} 12. Nxe4 {[%emt 0:00:07]} Nxe4 {[%emt 0:04:02]} 13. Qxe4 {[%emt 0:00:05]} Re8 {[%emt 0:08:13] C10: French with 3 Nc3: Unusual Black 3rd moves and 3...dxe4.} 14. Rad1 {[%emt 0:05:49] [#]} Qc7 $146 {[%emt 0:00:47]} ({Predecessor:} 14... Qf6 15. Ne5 Rad8 16. Rd3 Qf5 17. Qxf5 exf5 18. Nxd7 Rxd7 19. Rfd1 Re2 20. R3d2 Rde7 {1-0 (52) Zoltek,T (2230)-Iwancio,L (1966) Poznan 2007}) 15. Rfe1 {[%emt 0:01:18]} Rad8 {[%emt 0:10:49]} 16. Qc2 {[%emt 0:15:34]} Qa5 {[%emt 0:08:21]} 17. Bc3 {[%emt 0:08:03]} Qh5 {[%emt 0:01:24]} 18. h3 {[%emt 0:01:06]} Qg6 {[%emt 0:03:12]} 19. Qe2 {[%emt 0:07:11]} h6 {[%emt 0:05:06]} 20. Ba5 {[%emt 0:11:37]} b6 {[%emt 0:00:27]} 21. Bc3 {[%emt 0:00:09]} Qh5 {[%emt 0:10:14]} 22. Qb2 {[%emt 0:03:59]} (22. Qc2 {is more complex.} Rc8 23. Ne5 Red8 24. f4) 22... Bf8 {[%emt 0:00:42]} 23. Rd3 {[%emt 0:03:05][%cal Bd1d3,Bd3e3,Be3e5][%mdl 32]} Qf5 {[%emt 0:01:12]} 24. Rde3 {[%emt 0:00:33]} Rc8 {[%emt 0:03:10]} 25. Ne5 {[%emt 0:02:48]} Nxe5 {[%emt 0:00:27]} 26. Rxe5 {[%emt 0:00:02]} Qg6 {[%emt 0:00:41]} 27. R5e3 {[%emt 0:03:47]} Bd6 {[%emt 0:04:07]} 28. d5 {[%emt 0:01:27]} cxd5 {[%emt 0:00:07]} 29. cxd5 {[%emt 0:00:05]} Bf4 {[%emt 0:03:44]} 30. Re4 {[%emt 0:01:10]} Bg5 {[%emt 0:00:28]} (30... e5 $1 $11) 31. dxe6 {[%emt 0:02:22]} ({Better is} 31. h4 $16 Bf6 32. Bxf6 Qxf6 33. Qxf6 gxf6 34. dxe6) 31... Rxe6 $11 {[%emt 0:00:36] The position is equal.} 32. Rxe6 {[%emt 0:00:06]} fxe6 {[%emt 0:00:04]} 33. Rd1 {[%emt 0:00:39]} Qf7 {[%emt 0:00:18] Inhibits Rd7.} 34. Be5 {[%emt 0:00:53]} Rd8 {[%emt 0:01:20]} 35. Rxd8+ {[%emt 0:02:09]} Bxd8 {[%emt 0:00:02]} 36. Qd4 {[%emt 0:01:26] Weighted Error Value: White=0.11 (very precise) /Black=0.10 (very precise)} 1/2-1/2

[Event "Fall IM-D Norm Invitational 2022"]
[Site "Charlotte"]
[Date "2022.11.21"]
[Round "7"]
[White "Marek, Matyas"]
[Black "Eidelman, Gabriel"]
[Result "0-1"]
[ECO "A08"]
[WhiteElo "2346"]
[BlackElo "2197"]
[Annotator "TA"]
[PlyCount "64"]
[EventDate "2022.11.18"]
[EventType "tourn"]
[EventCountry "USA"]
[SourceTitle "playchess.com"]
[Source "ChessBase"]
[SourceQuality "1"]
[TimeControl "5400+30"]

{[%evp 21,64,-37,-16,-34,-39,-29,-33,-44,-22,-23,-35,-23,-21,-51,-41,-29,-53,-35,0,0,0,0,187,189,166,-111,-148,-252,-239,-453,-65,-45,-68,-66,-66,-227,-215,-237,-218,-218,-156,-443,-441,-510,-484]} 1. Nf3 {[%emt 0:00:09]} d5 {[%emt 0:03:10]} 2. g3 {[%emt 0:00:03]} Nf6 {[%emt 0:00:12]} 3. Bg2 {[%emt 0:00:04]} e6 {[%emt 0:00:13]} 4. O-O {[%emt 0:00:05]} Be7 {[%emt 0:00:20]} 5. d3 {[%emt 0:00:04]} O-O {[%emt 0:00:19]} 6. Nbd2 {[%emt 0:00:07][%cal Bb1d2,Bd2f1,Bf1h2,Bh2g4][%mdl 32]} c5 {[%emt 0:00:23]} 7. e4 {[%emt 0:00:05]} Nc6 {[%emt 0:00:13]} 8. Re1 {[%emt 0:00:14]} b5 {[%emt 0:00:18]} 9. e5 {[%emt 0:01:25]} Nd7 {[%emt 0:00:10]} 10. Nf1 {[%emt 0:00:14]} a5 {[%emt 0:09:46]} 11. h4 {[%emt 0:00:08]} b4 {[%emt 0:05:20]} 12. h5 {[%emt 0:00:32] C00: French: Unusual White 2nd moves.} h6 {[%emt 0:00:41] 12...Ba6 is vanishing.} 13. N1h2 {[%emt 0:00:13]} Ba6 {[%emt 0:09:59]} 14. Ng4 {[%emt 0:01:57] [#] Black is slightly better.} Rc8 $146 {[%emt 0:01:18]} ({Predecessor:} 14... Re8 15. Bf4 a4 16. a3 bxa3 17. bxa3 c4 18. d4 Rb8 19. Qd2 Bf8 20. c3 Qe7 {1-0 (44) Nickel,A (2606)-Wiacek,K (2518) ICCF email 2007}) 15. Be3 {[%emt 0:15:59]} Re8 {[%emt 0:05:29]} (15... Kh7 {with more complications.} 16. a3 bxa3 17. bxa3 Nb6) 16. Qd2 {[%emt 0:27:34]} Bf8 {[%emt 0:01:40]} 17. Bxh6 {[%emt 0:01:39]} gxh6 {[%emt 0:01:11]} 18. Nxh6+ {[%emt 0:00:03]} Bxh6 {[%emt 0:01:17]} 19. Qxh6 {[%emt 0:00:04]} Nd4 {[%emt 0:11:05]} 20. Ng5 {[%emt 0:03:35] White wants to mate with Qh7+.} Nf8 {[%emt 0:00:20] Against Qh7+} 21. g4 {[%emt 0:00:15] Inhibits Nf5.} Bb7 $2 {[%emt 0:10:39] [#]} (21... Rc7 $11 22. Rac1 c4 23. dxc4 Rxc4) 22. f4 $1 $18 {[%emt 0:21:51] Strongly threatening c3.} Qd7 {[%emt 0:01:37]} (22... Nxc2 $2 23. f5 exf5 24. gxf5 $18) 23. Qf6 $2 {[%emt 0:08:46]} (23. Rac1 $18) 23... Nh7 $17 {[%emt 0:05:19]} 24. Qh6 {[%emt 0:07:30]} (24. Nxh7 $17 Kxh7 25. Rac1) 24... Nxg5 $19 {[%emt 0:00:30]} 25. fxg5 {[%emt 0:00:34]} (25. Qxg5+ {only move.} Kh7 26. Rac1 (26. h6 $2 Rg8 $19)) 25... Qe7 $2 {[%emt 0:04:10]} (25... Nxc2 $19 26. Kh2 Ba6) 26. Rf1 $15 {[%emt 0:00:17] [#] Hoping for g6.} Qf8 {[%emt 0:01:24] White must now prevent ...Qxh6.} 27. Qf6 {[%emt 0:00:43] And now g6 would win.} Qg7 {[%emt 0:00:55]} ({Resist} 27... Nxc2 28. h6 Kh7 29. Qxf7+ (29. Rac1 Nd4 $11) 29... Qxf7 30. Rxf7+ Kh8 31. Raf1 $14 (31. Rc1 Nd4 $11)) 28. Qf2 {[%emt 0:00:21]} (28. Rf2 $1 $15) 28... Rc7 $19 {[%emt 0:01:55]} 29. c3 {[%emt 0:00:15]} bxc3 {[%emt 0:02:04]} 30. bxc3 {[%emt 0:00:04]} Nc6 {[%emt 0:04:21]} 31. Qxc5 $2 {[%emt 0:00:51]} (31. Qd2 $17) 31... Qxg5 {[%emt 0:00:31]} 32. Rab1 {[%emt 0:01:12]} Rec8 {[%emt 0:00:48] Weighted Error Value: White=0.66/Black=0.41} 0-1

[Event "Fall IM-D Norm Invitational 2022"]
[Site "Charlotte"]
[Date "2022.11.21"]
[Round "7"]
[White "Malicka, Maria"]
[Black "Amburgy, Ryan"]
[Result "1-0"]
[ECO "B10"]
[WhiteElo "2275"]
[BlackElo "2175"]
[Annotator "TA"]
[PlyCount "101"]
[EventDate "2022.11.18"]
[EventType "tourn"]
[EventCountry "USA"]
[SourceTitle "playchess.com"]
[Source "ChessBase"]
[SourceQuality "1"]
[TimeControl "5400+30"]

{[%evp 9,101,14,11,4,14,10,22,10,14,7,23,28,47,2,26,28,37,17,46,38,51,29,32,21,39,9,33,0,52,39,56,56,49,47,73,79,272,276,289,225,226,225,225,223,288,281,268,281,297,256,293,294,466,459,465,458,422,270,469,459,576,431,581,458,684,655,714,640,847,761,2043,1664,1516,1194,1573,2242,2404,2191,2002,2076,29975,29975,29983,29984,29984,29985,29985,29986,29991,29992,29997,29998,29998,29999]} 1. e4 {[%emt 0:00:01]} c6 {[%emt 0:00:04]} 2. Nf3 {[%emt 0:00:07]} d5 {[%emt 0:00:03]} 3. d3 {[%emt 0:00:05]} Qc7 {[%emt 0:00:15]} 4. exd5 {[%emt 0:00:08]} cxd5 {[%emt 0:00:04]} 5. c4 {[%emt 0:00:03]} Nf6 {[%emt 0:00:21]} 6. Nc3 {[%emt 0:00:02] B10: Caro-Kann: 2 d3 and 2 c4.} e6 {[%emt 0:00:23]} 7. Be2 {[%emt 0:00:06] [#]} a6 $146 {[%emt 0:01:51]} ({Predecessor:} 7... Bb4 8. Qb3 Nc6 9. O-O dxc4 10. dxc4 O-O 11. Bg5 Bxc3 12. Qxc3 Ne4 13. Qe3 Nxg5 14. Nxg5 {1-0 (43) Pridorozhni,A (2564)-Rozum,I (2529) Khanty-Mansiysk 2021}) 8. O-O {[%emt 0:00:44] The position is equal.} Be7 {[%emt 0:05:15]} 9. Bg5 {[%emt 0:06:09][%cal Bc1g5,Bg5h4,Bh4g3,Bg3d6][%mdl 32]} dxc4 {[%emt 0:04:17]} 10. dxc4 {[%emt 0:00:12]} O-O {[%emt 0:00:12]} 11. Qc2 {[%emt 0:06:40]} Nc6 {[%emt 0:03:37]} 12. Rfd1 {[%emt 0:02:06]} b6 {[%emt 0:14:59]} 13. Bh4 {[%emt 0:11:07]} Rd8 {[%emt 0:13:03]} 14. Rxd8+ {[%emt 0:07:58]} Bxd8 {[%emt 0:06:01]} 15. Rd1 {[%emt 0:03:58]} (15. Bg3 $5 {[%cal Rg3c7]} Qe7 16. Ne4 $14) 15... Bb7 {[%emt 0:02:48]} 16. Bg3 {[%emt 0:00:39]} Qc8 {[%emt 0:00:08]} 17. a3 {[%emt 0:11:25]} h6 {[%emt 0:07:36]} 18. b4 {[%emt 0:06:54]} Nh5 {[%emt 0:00:57]} ({Black should try} 18... Ne7 $11) 19. Bd6 {[%emt 0:07:06]} Bc7 {[%emt 0:03:07]} 20. Qd2 $36 {[%emt 0:04:11][%mdl 2048] White is pushing.} Nf6 {[%emt 0:01:39] Prevents Ne4.} 21. Qf4 {[%emt 0:06:40]} Bb8 {[%emt 0:01:59]} 22. Na4 {[%emt 0:04:16] White is much more active.} Nd7 {[%emt 0:00:52] Black cannot hold the game after this.} (22... Ba7 $16) 23. Bxb8 $18 {[%emt 0:01:37]} Qxb8 {[%emt 0:02:35]} 24. Qd6 {[%emt 0:06:20]} Qxd6 {[%emt 0:05:29]} 25. Rxd6 {[%emt 0:00:02]} Rd8 {[%emt 0:00:01]} 26. Nd4 {[%emt 0:06:46]} Nde5 {[%emt 0:03:27] [#]} 27. Rxd8+ {[%emt 0:00:10]} Nxd8 {[%emt 0:00:01]} 28. Nxb6 {[%emt 0:00:10]} Kf8 {[%emt 0:00:24]} 29. Nb3 {[%emt 0:03:02]} Ke7 {[%emt 0:00:31]} 30. f4 {[%emt 0:01:25]} Nd7 {[%emt 0:01:19]} (30... Nec6 {keeps fighting.} 31. Kf2 Kd6 32. c5+ Kc7) 31. Nxd7 {[%emt 0:00:19]} Kxd7 {[%emt 0:00:01][%mdl 4096] Endgame KBN-KBN} 32. Nc5+ {[%emt 0:00:36]} Kc7 {[%emt 0:00:00]} 33. Kf2 {[%emt 0:00:30]} f6 $2 {[%emt 0:01:13]} (33... Bc8 {was necessary.} 34. Bh5 f6) 34. Nxb7 {[%emt 0:01:18]} Nxb7 {[%emt 0:00:14] KB-KN} 35. Ke3 {[%emt 0:00:52]} a5 {[%emt 0:00:54]} 36. Kd4 {[%emt 0:00:55]} axb4 {[%emt 0:00:01]} (36... Nd6 $142 37. bxa5 Nb7) 37. axb4 {[%emt 0:00:01][%cal Ba3b4,Bb4b5,Bb5b6][%mdl 32]} g5 {[%emt 0:00:55]} 38. g3 {[%emt 0:00:22][%cal Bg2g3,Bg3f4][%mdl 32] [#] c5 is the strong threat.} Nd6 {[%emt 0:00:19]} 39. Bg4 {[%emt 0:01:58]} gxf4 {[%emt 0:02:59]} 40. gxf4 {[%emt 0:00:02]} Kd7 {[%emt 0:00:11]} 41. b5 {[%emt 0:00:39]} Ke7 {[%emt 0:00:40]} 42. Kc5 {[%emt 0:02:33]} Kd7 {[%emt 0:00:37]} 43. Bf3 {[%emt 0:00:37]} Nf5 {[%emt 0:00:29]} 44. b6 {[%emt 0:00:19]} Kc8 {[%emt 0:00:42]} 45. Bg4 {[%emt 0:00:26] White mates.} Ng7 {[%emt 0:00:01]} 46. Kd6 {[%emt 0:00:25]} Kb7 {[%emt 0:00:39]} 47. c5 {[%emt 0:00:11][%cal Bc4c5,Bc5c6,Bc6c7][%mdl 32]} e5 {[%emt 0:00:02]} 48. Bf3+ {[%emt 0:00:20]} Kb8 {[%emt 0:00:01]} 49. c6 {[%emt 0:00:47]} Nf5+ {[%emt 0:00:19]} 50. Kd7 {[%emt 0:00:08][%csl Gb6,Gd7][%cal Rc6c7]} Ka8 {[%emt 0:00:16]} 51. c7+ {[%emt 0:00:06] Weighted Error Value: White=0.17 (very precise) /Black=0.53} 1-0

[Event "Fall IM-D Norm Invitational 2022"]
[Site "Charlotte"]
[Date "2022.11.21"]
[Round "7"]
[White "Estrada Nieto, Julian"]
[Black "De La Colina, Nicolas"]
[Result "1/2-1/2"]
[ECO "B08"]
[WhiteElo "2241"]
[BlackElo "2123"]
[Annotator "TA"]
[PlyCount "36"]
[EventDate "2022.11.18"]
[EventType "tourn"]
[EventCountry "USA"]
[SourceTitle "playchess.com"]
[Source "ChessBase"]
[SourceQuality "1"]
[TimeControl "5400+30"]

{[%evp 13,36,20,35,12,20,16,10,22,20,-42,-43,-89,-36,-28,-14,-56,0,-75,-79,-77,38,36,446,452,431]} 1. e4 {[%emt 0:00:01]} g6 {[%emt 0:03:40]} 2. d4 {[%emt 0:00:27]} Bg7 {[%emt 0:00:06]} 3. Nf3 {[%emt 0:00:14]} d6 {[%emt 0:00:08]} 4. Nc3 {[%emt 0:00:24]} Nf6 {[%emt 0:00:17]} 5. Be2 {[%emt 0:00:14]} O-O {[%emt 0:00:09]} 6. O-O {[%emt 0:00:04]} a6 {[%emt 0:00:07]} 7. a4 {[%emt 0:04:36][%cal Ba2a4,Ba4a5][%mdl 32]} Nc6 {[%emt 0:00:43]} 8. d5 $1 {[%emt 0:07:32][%mdl 4] outshines the older 8.h3. B08: Pirc Defence: Classical System.} Nb4 {[%emt 0:03:01]} 9. a5 {[%emt 0:11:56]} e6 $1 {[%emt 0:04:03]} 10. Ra4 {[%emt 0:13:37] The position is equal.} c5 {[%emt 0:00:19] [#]} 11. Ne1 $146 {[%emt 0:01:18]} (11. dxc6 $11 Nxc6 12. Bg5) ({Predecessor:} 11. dxc6 Nxc6 12. Bf4 Ne8 13. Qd2 Nxa5 14. Rd1 Nc6 15. Bh6 e5 16. Bg5 Bf6 17. Be3 {1-0 (47) Naroditsky,D (2621)-Onischuk,V (2622) Chess.com INT 2020}) 11... Re8 $15 {[%emt 0:07:28]} 12. Be3 {[%emt 0:15:28]} (12. Bf3 $15) 12... b5 ({Black should play} 12... exd5 $17 {aiming for ...d4.} 13. exd5 Nd7) 13. axb6 $1 Qxb6 14. Qd2 Bb7 ({Better is} 14... exd5 $15 15. exd5 Bb7) 15. Bc4 (15. Nd3 $11 {keeps the balance.} Nxd3 16. Qxd3) 15... exd5 $17 16. exd5 Ne4 (16... Qc7 $17 17. b3 Nd7) 17. Nxe4 $14 Re5 $2 {[%mdl 8192] [#]} ({Black should try} 17... Rxe4 $14 18. b3 Re5) 18. Nc3 $18 Ree8 {[%mdl 32768] Weighted Error Value: White=0.32/Black=0.68. An unexpected result.} 1/2-1/2